bitfinex-derivatives/quotes_BTCF0:USTF0_20250527
["timestamp","ask_amount","ask_price","bid_price","bid_amount"]
[1748354956101,0.17943629,110100.0,110090.0,1.26508017]
[1748354956602,0.17943629,110100.0,110090.0,0.89508017]
[1748354956806,0.17955629,110100.0,110090.0,1.22508017]
[1748354957101,0.17955629,110100.0,110090.0,0.8723821]
[1748354957298,0.74112189,110100.0,110090.0,0.10924]
[1748354957495,0.74112189,110100.0,110090.0,0.1815821]
[1748354957701,1.18212189,110100.0,110090.0,0.2908221]
[1748354958018,1.18312189,110100.0,110090.0,0.2908221]
[1748354958799,1.62252189,110100.0,110090.0,0.2908221]
[1748354959009,1.62352189,110100.0,110090.0,0.2908221]
[1748354959609,1.62352189,110100.0,110090.0,0.29623679]
[1748354959911,1.62352189,110100.0,110090.0,0.2908221]
[1748354960308,1.62352189,110100.0,110090.0,0.33745856]
[1748354961703,1.62352189,110100.0,110090.0,0.33746919]
[1748354962011,1.00255629,110100.0,110090.0,0.33746919]
[1748354962312,0.26175629,110100.0,110090.0,1.32896262]
[1748354962513,0.18143629,110100.0,110090.0,2.32160208]
[1748354962811,0.18143629,110100.0,110090.0,2.33323449]
[1748354963528,0.18155629,110100.0,110090.0,2.33323449]
[1748354963637,0.00136359,110140.0,110130.0,0.1815162]
[1748354963804,0.52396359,110140.0,110130.0,0.32039661]
[1748354964006,0.52396359,110140.0,110130.0,0.22815865]
[1748354964211,0.52408359,110140.0,110130.0,0.22815865]
[1748354964707,0.52408359,110140.0,110130.0,0.23357084]
[1748354964912,0.60698359,110140.0,110130.0,0.23357084]
[1748354965119,0.60686359,110140.0,110130.0,0.23357084]
[1748354965408,0.60698359,110140.0,110130.0,0.23400353]
[1748354965921,0.61198359,110140.0,110130.0,0.23400353]
[1748354966211,0.60898359,110140.0,110130.0,0.23400353]
[1748354966401,0.60898359,110140.0,110130.0,0.59480353]
[1748354967518,0.60886359,110140.0,110130.0,0.67650353]
[1748354967717,0.60898359,110140.0,110130.0,0.67650353]
[1748354968619,0.60898359,110140.0,110130.0,0.62942392]
[1748354968806,0.60898359,110140.0,110130.0,0.6240162]
[1748354969013,0.60898359,110140.0,110130.0,0.62942392]
[1748354969809,0.79048319,110140.0,110130.0,0.18692392]
[1748354970012,0.60898359,110140.0,110130.0,0.18692392]
[1748354970320,0.60898359,110140.0,110130.0,0.18692308]
[1748354970620,1.15128319,110140.0,110130.0,0.00540688]
[1748354970821,1.15128319,110140.0,110130.0,0.18692298]
[1748354971124,1.15128319,110140.0,110130.0,0.1815161]
[1748354972117,0.1815161,110130.0,110120.0,0.4411062]
[1748354972422,1.4569361,110130.0,110120.0,0.4411062]
[1748354972921,1.4569361,110130.0,110120.0,0.38871798]
[1748354973115,1.0961361,110130.0,110120.0,0.38871798]
[1748354973310,1.0971361,110130.0,110120.0,0.38871798]
[1748354973512,1.0981361,110130.0,110120.0,0.38871798]
[1748354973823,1.4589361,110130.0,110120.0,0.38871798]
[1748354974217,1.4589361,110130.0,110120.0,0.3887194]
[1748354974721,1.4589361,110130.0,110120.0,0.3833111]
[1748354975327,1.27742,110130.0,110120.0,0.2795194]
[1748354975626,1.4589361,110130.0,110120.0,0.2795194]
[1748354976019,1.4589361,110130.0,110120.0,0.3592194]
[1748354976326,1.4590561,110130.0,110120.0,0.3592194]
[1748354976823,1.27754,110130.0,110120.0,0.3592194]
[1748354977226,1.27754,110130.0,110120.0,0.3538111]
[1748354977428,0.6283,110130.0,110120.0,0.3538111]
[1748354977626,0.2675,110130.0,110120.0,0.4324111]
[1748354977937,0.2675,110130.0,110120.0,0.57170812]
[1748354977938,0.26762,110130.0,110120.0,0.57170812]
[1748354978124,0.26762,110130.0,110120.0,1.12720619]
[1748354978125,0.1575,110130.0,110120.0,1.12720619]
[1748354978327,0.15762,110130.0,110120.0,1.12720619]
[1748354978825,0.15762,110130.0,110120.0,1.13260953]
[1748354979125,0.15762,110130.0,110120.0,1.08554132]
[1748354979325,0.15762,110130.0,110120.0,1.08013798]
[1748354979512,0.15762,110130.0,110120.0,1.08735645]
[1748354980116,0.15762,110130.0,110120.0,0.89265838]
[1748354980528,0.15762,110130.0,110120.0,0.89806198]
[1748354981141,0.15762,110130.0,110120.0,0.56766198]
[1748354981630,0.15762,110130.0,110120.0,0.47542402]
[1748354982536,0.15762,110130.0,110120.0,0.42836496]
[1748354982739,0.15762,110130.0,110120.0,0.42836489]
[1748354982935,0.15762,110130.0,110120.0,0.78916489]
[1748354983734,0.15762,110130.0,110120.0,0.78376136]
[1748354984132,0.3391361,110130.0,110120.0,0.78376136]
[1748354984441,0.17762,110130.0,110120.0,0.83084969]
[1748354985641,0.17762,110130.0,110120.0,0.91508073]
[1748354986037,0.17762,110130.0,110120.0,1.1097788]
[1748354986342,0.15762,110130.0,110120.0,1.1997788]
[1748354986537,0.1575,110130.0,110120.0,1.43256033]
[1748354986843,0.15762,110130.0,110120.0,1.43256033]
[1748354987234,0.00013629,110150.0,110140.0,0.1814996]
[1748354987437,0.15293629,110150.0,110140.0,1.37001464]
[1748354987740,0.15293629,110150.0,110140.0,1.37542763]
[1748354987934,0.15305629,110150.0,110140.0,1.36821698]
[1748354988532,0.07773629,110150.0,110140.0,1.37821698]
[1748354988732,0.07773629,110150.0,110140.0,1.72821698]
[1748354988933,0.07785629,110150.0,110140.0,1.74167928]
[1748354989148,0.08073629,110150.0,110140.0,1.74167928]
[1748354989338,0.08085629,110150.0,110140.0,1.91793226]
[1748354989538,0.08373629,110150.0,110140.0,1.72323419]
[1748354989843,0.08085629,110150.0,110140.0,1.80263481]
[1748354990147,0.07885629,110150.0,110140.0,1.80263481]
[1748354990333,0.07885629,110150.0,110140.0,1.91793226]
[1748354990654,0.07885629,110150.0,110140.0,1.90637704]
[1748354991155,0.15265629,110150.0,110140.0,1.90637704]
[1748354991543,0.15265629,110150.0,110140.0,1.85250984]
[1748354992843,0.15265629,110150.0,110140.0,1.74876761]
[1748354993646,0.00125629,110150.0,110140.0,1.42876761]
[1748354993849,0.00125629,110150.0,110140.0,1.77239856]
[1748354994150,0.00113629,110150.0,110140.0,1.77239856]
[1748354994351,0.00125629,110150.0,110140.0,1.56325023]
[1748354994545,0.00113629,110150.0,110140.0,1.77602221]
[1748354994745,0.00125629,110150.0,110140.0,1.77602221]
[1748354995145,0.00025629,110150.0,110140.0,1.77702221]
[1748354995552,0.00025629,110150.0,110140.0,1.73093388]
[1748354995947,0.00025629,110150.0,110140.0,1.7453865]
[1748354996252,0.00025629,110150.0,110140.0,1.72731259]
[1748354997237,0.00025629,110150.0,110140.0,1.77525803]
[1748354997442,0.00025629,110150.0,110140.0,2.02119541]
[1748354998649,0.00025629,110150.0,110140.0,1.71749734]
[1748354998855,0.03025629,110150.0,110140.0,1.66762389]
[1748354999152,0.18735629,110150.0,110140.0,2.11264258]
[1748355000847,0.18735629,110150.0,110140.0,1.13818451]
[1748355001056,0.21735629,110150.0,110140.0,1.16874451]
[1748355001347,0.29095629,110150.0,110140.0,1.17956809]
[1748355001548,0.29095629,110150.0,110140.0,1.16511547]
[1748355001753,0.23095629,110150.0,110140.0,1.43761354]
[1748355002353,0.23095629,110150.0,110140.0,1.68541971]
[1748355002354,0.15735629,110150.0,110140.0,1.68541971]
[1748355002545,0.15723629,110150.0,110140.0,1.67093567]
[1748355002744,0.15735629,110150.0,110140.0,1.86563374]
[1748355003253,0.15735629,110150.0,110140.0,1.87563374]
[1748355003456,0.15735629,110150.0,110140.0,1.87563692]
[1748355004358,0.07915629,110150.0,110140.0,1.87563692]
[1748355004656,0.07903629,110150.0,110140.0,1.87563692]
[1748355004857,0.07915629,110150.0,110140.0,1.87563692]
[1748355005358,0.00012,110150.0,110140.0,1.86481334]
[1748355005541,0.0741,110170.0,110160.0,0.1814667]
[1748355005746,0.0741,110170.0,110160.0,1.22592477]
[1748355005946,0.0741,110170.0,110160.0,1.30082477]
[1748355006150,0.07422,110170.0,110160.0,1.37822477]
[1748355006751,0.07622,110170.0,110160.0,1.37822477]
[1748355007147,0.07822,110170.0,110160.0,1.30822477]
[1748355007548,0.07822,110170.0,110160.0,1.35615606]
[1748355007743,0.07822,110170.0,110160.0,1.30822477]
[1748355007953,0.0781,110170.0,110160.0,1.42067525]
[1748355008157,0.0781,110170.0,110160.0,1.86040206]
[1748355008158,0.07822,110170.0,110160.0,1.86040206]
[1748355008364,6e-08,110180.0,110170.0,0.1814502]
[1748355008552,0.175,110200.0,110190.0,0.1814173]
[1748355008856,0.175,110200.0,110190.0,0.84487537]
[1748355009159,0.175,110200.0,110190.0,0.92347537]
[1748355009353,0.175,110200.0,110190.0,0.74305807]
[1748355009552,0.175,110200.0,110190.0,0.92447537]
[1748355009755,0.177,110200.0,110190.0,1.24447537]
[1748355009957,0.0651767,110200.0,110190.0,1.69037537]
[1748355010144,0.08443423,110210.0,110200.0,0.1814008]
[1748355010352,0.07636197,110220.0,110210.0,0.1813843]
[1748355010546,0.095,110220.0,110210.0,0.6933843]
[1748355010857,0.92421765,110240.0,110210.0,0.82940519]
[1748355010858,0.3608,110240.0,110210.0,0.82940519]
[1748355011062,0.14095032,110250.0,110230.0,1.00696757]
[1748355011247,0.14095032,110250.0,110240.0,0.650855]
[1748355011449,0.0769,110250.0,110240.0,0.617235]
[1748355011647,0.0769,110250.0,110240.0,0.649855]
[1748355011852,0.16702,110250.0,110240.0,0.649855]
[1748355012161,0.17002,110250.0,110240.0,0.649855]
[1748355012551,0.3513386,110250.0,110240.0,0.649855]
[1748355012760,0.17002,110250.0,110240.0,0.649855]
[1748355012959,0.16702,110250.0,110240.0,0.649855]
[1748355013457,0.1669,110250.0,110240.0,0.649855]
[1748355013658,0.16702,110250.0,110240.0,0.649855]
[1748355015257,0.16702,110250.0,110230.0,0.18894502]
[1748355015258,0.181335,110240.0,110230.0,0.18894502]
[1748355015457,0.1813515,110230.0,110220.0,0.27430437]
[1748355015647,1.3970515,110230.0,110220.0,0.09293647]
[1748355015850,0.1813679,110220.0,110210.0,0.01378712]
[1748355016056,0.9121679,110220.0,110210.0,0.1813844]
[1748355016246,1.00289991,110220.0,110210.0,0.1813844]
[1748355016459,0.912168,110220.0,110210.0,0.1813844]
[1748355016958,1.00290001,110220.0,110210.0,0.1813844]
[1748355017163,1.00290001,110220.0,110200.0,0.28591222]
[1748355017164,0.1813844,110210.0,110200.0,0.28591222]
[1748355017361,1.4510844,110210.0,110200.0,0.28591222]
[1748355017659,1.4510844,110210.0,110200.0,0.10451992]
[1748355017660,1.8097644,110210.0,110200.0,0.10451992]
[1748355017856,0.1814009,110200.0,110190.0,0.30859763]
[1748355018052,1.3303609,110200.0,110190.0,0.30859763]
[1748355018253,0.35,110200.0,110190.0,0.29587361]
[1748355018451,0.93625137,110220.0,110210.0,0.1813844]
[1748355018663,1.77081137,110220.0,110210.0,0.1813844]
[1748355018863,2.11154338,110220.0,110210.0,0.1813844]
[1748355019071,2.19224338,110220.0,110210.0,0.1813844]
[1748355019364,2.20132543,110220.0,110210.0,0.1813844]
[1748355019859,2.19324338,110220.0,110210.0,0.1813844]
[1748355020052,1.4584443,110220.0,110200.0,0.18152869]
[1748355020258,0.2592845,110210.0,110200.0,0.36292959]
[1748355020462,0.1579,110210.0,110200.0,0.36292959]
[1748355020654,0.7774445,110210.0,110200.0,0.36292959]
[1748355020860,0.7774445,110210.0,110200.0,0.91842766]
[1748355020861,0.1579,110210.0,110200.0,0.91842766]
[1748355021064,0.15802,110210.0,110200.0,1.07062766]
[1748355021459,0.1579,110210.0,110200.0,1.17930766]
[1748355021656,0.15802,110210.0,110200.0,1.17930766]
[1748355022062,0.15802,110210.0,110200.0,1.22438605]
[1748355022657,0.08012,110210.0,110200.0,1.53438605]
[1748355022853,0.00012,110210.0,110200.0,1.22438954]
[1748355023058,0.072,110210.0,110200.0,1.22438954]
[1748355023264,0.072,110210.0,110200.0,0.93926049]
[1748355023265,0.2635045,110210.0,110200.0,0.93926049]
[1748355023765,0.08212,110210.0,110200.0,0.93926049]
[1748355024168,0.07212,110210.0,110200.0,0.93883896]
[1748355024362,0.07212,110210.0,110200.0,0.95283896]
[1748355024557,0.072,110210.0,110200.0,0.95283896]
[1748355024757,0.07212,110210.0,110200.0,0.95283896]
[1748355025267,0.00012,110210.0,110200.0,1.30283896]
[1748355025477,0.253368,110220.0,110210.0,0.1813845]
[1748355025658,0.132,110220.0,110210.0,0.6896845]
[1748355025857,0.132,110220.0,110210.0,1.0496845]
[1748355026058,0.07183629,110230.0,110220.0,0.181368]
[1748355026260,0.21183629,110230.0,110220.0,1.35384607]
[1748355026454,0.07183629,110230.0,110220.0,1.35384607]
[1748355026960,0.07183629,110230.0,110220.0,1.47041938]
[1748355027162,0.00025629,110230.0,110220.0,1.47141938]
[1748355027362,0.00013629,110230.0,110220.0,1.47141938]
[1748355027564,0.00013629,110230.0,110220.0,1.47141919]
[1748355027868,0.00013629,110230.0,110220.0,1.48061314]
[1748355028271,0.00025629,110230.0,110220.0,1.48161314]
[1748355028659,0.00025629,110230.0,110220.0,1.28691507]
[1748355028865,0.00025629,110230.0,110220.0,1.22161314]
[1748355029355,0.00025629,110230.0,110220.0,0.80904112]
[1748355029555,0.00025629,110230.0,110220.0,0.872548]
[1748355029763,0.07515629,110230.0,110220.0,1.06724607]
[1748355030371,0.15015629,110230.0,110220.0,1.07638375]
[1748355030672,0.15015629,110230.0,110220.0,0.872548]
[1748355031375,0.07515629,110230.0,110220.0,1.38724607]
[1748355031562,0.07503629,110230.0,110220.0,1.38724607]
[1748355031764,0.07515629,110230.0,110220.0,1.38724607]
[1748355031957,0.07515629,110230.0,110220.0,0.872548]
[1748355032162,0.07515629,110230.0,110220.0,1.06724607]
[1748355032665,0.30303222,110240.0,110230.0,0.1813515]
[1748355032666,0.00136192,110240.0,110230.0,0.1813515]
[1748355032856,0.1492,110250.0,110240.0,0.1813351]
[1748355033059,0.1692,110250.0,110240.0,0.99441317]
[1748355033269,0.1692,110250.0,110240.0,1.00441317]
[1748355033470,0.1692,110250.0,110240.0,0.99441317]
[1748355033867,0.16932,110250.0,110240.0,1.00441317]
[1748355034070,0.1692,110250.0,110240.0,1.00441317]
[1748355034272,0.16932,110250.0,110240.0,1.00441317]
[1748355035377,0.17032,110250.0,110240.0,1.00441317]
[1748355035578,0.17032,110250.0,110240.0,1.01829028]
[1748355036572,0.17032,110250.0,110240.0,0.90961028]
[1748355036765,0.17032,110250.0,110240.0,1.01825028]
[1748355036968,0.15032,110250.0,110240.0,1.09465028]
[1748355038203,0.15032,110250.0,110240.0,0.89995221]
[1748355038566,0.15032,110250.0,110240.0,0.79131221]
[1748355038876,0.15032,110250.0,110240.0,0.89995221]
[1748355040375,0.3316386,110250.0,110240.0,0.38135221]
[1748355040705,0.6616386,110250.0,110240.0,0.38135221]
[1748355040878,1.0224386,110250.0,110240.0,0.19521221]
[1748355041075,1.0224386,110250.0,110240.0,0.20063009]
[1748355041076,1.0983386,110250.0,110240.0,0.20063009]
[1748355042182,2.58962607,110250.0,110210.0,0.3608]
[1748355042375,2.58962607,110250.0,110190.0,0.00136112]
[1748355042376,0.1814009,110200.0,110190.0,0.27346742]
[1748355042575,1.3100409,110200.0,110190.0,0.18276292]
[1748355042783,1.7484409,110200.0,110190.0,0.00136112]
[1748355043024,1.8391889,110200.0,110190.0,0.00136112]
[1748355043676,1.4788489,110200.0,110190.0,0.18277842]
[1748355043880,1.1043409,110200.0,110190.0,0.18277842]
[1748355044085,1.4682609,110200.0,110190.0,0.25667842]
[1748355044287,1.4682609,110200.0,110190.0,0.33147842]
[1748355044583,1.4712609,110200.0,110190.0,0.33047842]
[1748355044886,0.49122,110200.0,110190.0,0.69127842]
[1748355045068,0.1726,110200.0,110190.0,0.33047842]
[1748355045268,0.7920009,110200.0,110190.0,0.69127842]
[1748355045473,0.6242809,110200.0,110190.0,0.88597649]
[1748355045680,0.1864009,110200.0,110190.0,0.89333883]
[1748355045880,0.1865209,110200.0,110190.0,0.89333883]
[1748355046181,0.00412,110200.0,110190.0,0.89333883]
[1748355046384,0.1855209,110200.0,110190.0,0.89333883]
[1748355046768,0.1855209,110200.0,110190.0,0.69864076]
[1748355046974,0.1855209,110200.0,110190.0,0.89333883]
[1748355047175,0.00412,110200.0,110190.0,0.89333883]
[1748355047380,0.1855209,110200.0,110190.0,0.89333883]
[1748355047684,0.1815209,110200.0,110190.0,0.89333883]
[1748355048186,0.1815209,110200.0,110190.0,0.69864076]
[1748355048386,0.00012,110200.0,110190.0,0.89333883]
[1748355048686,0.18152069,110210.0,110200.0,0.1814009]
[1748355048885,0.18152069,110210.0,110200.0,1.12832379]
[1748355048886,0.00013629,110210.0,110200.0,1.12832379]
[1748355049379,0.00025629,110210.0,110200.0,1.12832379]
[1748355049986,0.00025629,110210.0,110200.0,1.18080741]
[1748355050788,0.00025629,110210.0,110200.0,1.13032379]
[1748355051183,0.18164069,110210.0,110200.0,1.06176379]
[1748355051379,0.22164069,110210.0,110200.0,0.70166]
[1748355051580,0.22164069,110210.0,110200.0,0.8830609]
[1748355051581,0.48354069,110210.0,110200.0,0.8830609]
[1748355051793,0.56024069,110210.0,110200.0,0.8820609]
[1748355051979,0.56024069,110210.0,110200.0,0.8840609]
[1748355052684,0.37885629,110210.0,110200.0,0.8830609]
[1748355052886,0.81673629,110210.0,110200.0,0.89242324]
[1748355053084,0.81661629,110210.0,110200.0,0.89242324]
[1748355053289,0.62673629,110210.0,110200.0,0.89242324]
[1748355053490,0.62673629,110210.0,110200.0,1.08512131]
[1748355053730,0.62673629,110210.0,110200.0,1.13233662]
[1748355053895,0.62673629,110210.0,110200.0,1.02377662]
[1748355054190,0.62673629,110210.0,110200.0,1.13233662]
[1748355054580,0.04025629,110210.0,110200.0,1.12497428]
[1748355054884,0.00025629,110210.0,110200.0,1.13233662]
[1748355055080,0.00013629,110210.0,110200.0,1.13233662]
[1748355055284,0.00025629,110210.0,110200.0,1.13233662]
[1748355056090,0.00025629,110210.0,110200.0,1.94017662]
[1748355056091,9e-08,110210.0,110200.0,1.94017662]
[1748355056398,9e-08,110210.0,110200.0,1.75266928]
[1748355056589,0.1470621,110230.0,110220.0,0.1813679]
[1748355056792,0.1670621,110230.0,110220.0,0.65809024]
[1748355056992,0.1670621,110230.0,110220.0,0.73319024]
[1748355057792,0.1680621,110230.0,110220.0,0.73319024]
[1748355059303,0.1670621,110230.0,110220.0,0.73319024]
[1748355059509,0.1670621,110230.0,110220.0,0.80929024]
[1748355059696,0.1670621,110230.0,110220.0,0.88399024]
[1748355059897,0.1670621,110230.0,110220.0,0.88499024]
[1748355060223,0.1671821,110230.0,110220.0,0.52419024]
[1748355064412,0.17160441,110230.0,110220.0,0.52419024]
[1748355065302,0.35295611,110230.0,110220.0,0.52419024]
[1748355065609,0.35295611,110230.0,110220.0,0.3331679]
[1748355065818,1.07375611,110230.0,110220.0,0.04723997]
[1748355066125,1.07375611,110230.0,110210.0,0.1929686]
[1748355066126,0.1813689,110220.0,110210.0,0.01097986]
[1748355066326,1.77772697,110220.0,110210.0,0.01097986]
[1748355066507,2.11845898,110220.0,110210.0,0.01097986]
[1748355067319,1.92376091,110220.0,110210.0,0.01097986]
[1748355068310,1.1452689,110220.0,110210.0,0.19236516]
[1748355068509,1.5830289,110220.0,110210.0,0.19436516]
[1748355068715,1.5831489,110220.0,110210.0,0.19436516]
[1748355069714,1.5841489,110220.0,110210.0,0.19236516]
[1748355070226,1.5841489,110220.0,110210.0,0.18152159]
[1748355072017,1.5841489,110220.0,110210.0,0.00013629]
[1748355072227,1.67488091,110220.0,110210.0,0.00013629]
[1748355073529,1.67476091,110220.0,110210.0,0.00013629]
[1748355073721,1.67488091,110220.0,110210.0,0.00013629]
[1748355074220,1.67488091,110220.0,110210.0,0.04488649]
[1748355074421,1.67484091,110220.0,110210.0,0.22627024]
[1748355074621,1.67472091,110220.0,110210.0,0.22627024]
[1748355074824,1.67484091,110220.0,110210.0,0.22627024]
[1748355075745,1.67484091,110220.0,110210.0,0.04488494]
[1748355077226,0.1814183,110190.0,110180.0,0.17928874]
[1748355077426,1.3599383,110190.0,110180.0,0.28462104]
[1748355077623,1.5123383,110190.0,110180.0,0.28462104]
[1748355077821,1.5123383,110190.0,110180.0,0.35522104]
[1748355078314,1.1515383,110190.0,110180.0,0.43352104]
[1748355078726,1.1516583,110190.0,110180.0,0.43352104]
[1748355078921,0.4839383,110190.0,110180.0,0.80168338]
[1748355079125,0.00012,110190.0,110180.0,0.91012338]
[1748355079517,0.07672,110190.0,110180.0,1.10482145]
[1748355080026,0.74042189,110200.0,110190.0,0.1814183]
[1748355080330,0.90702189,110200.0,110190.0,0.76828064]
[1748355080630,0.46930189,110200.0,110190.0,0.40748064]
[1748355080831,0.90714189,110200.0,110190.0,0.40748064]
[1748355081421,0.90714189,110200.0,110190.0,0.41148064]
[1748355081620,0.83134189,110200.0,110190.0,0.41148064]
[1748355082015,0.83134189,110200.0,110190.0,0.45643422]
[1748355082226,1.10214189,110200.0,110190.0,0.27501592]
[1748355082427,1.31414189,110200.0,110190.0,0.45643412]
[1748355082822,1.31414189,110200.0,110190.0,0.27501592]
[1748355083224,1.31414189,110200.0,110190.0,0.45643422]
[1748355084734,1.31414189,110200.0,110190.0,0.41148064]
[1748355085615,1.31414189,110200.0,110190.0,0.1474]
[1748355085616,1.17414189,110200.0,110190.0,0.1474]
[1748355085817,1.50164189,110200.0,110190.0,0.004]
[1748355086422,1.50164189,110200.0,110190.0,0.1854183]
[1748355087535,1.06392189,110200.0,110190.0,0.1854183]
[1748355087922,1.50156189,110200.0,110190.0,0.3299183]
[1748355088136,1.50144189,110200.0,110190.0,0.3299183]
[1748355088336,1.50156189,110200.0,110190.0,0.3299183]
[1748355088537,1.50156189,110200.0,110190.0,0.2570183]
[1748355089234,1.06330189,110200.0,110190.0,0.3299183]
[1748355089438,0.32685629,110200.0,110190.0,0.96447871]
[1748355089663,0.32673629,110200.0,110190.0,1.00943473]
[1748355089936,0.76437629,110200.0,110190.0,0.81473666]
[1748355090234,0.76449629,110200.0,110190.0,0.81473666]
[1748355090439,0.47789629,110200.0,110190.0,0.80737432]
[1748355090632,0.65929809,110200.0,110190.0,0.81473666]
[1748355090828,0.73539809,110200.0,110190.0,0.81473666]
[1748355091040,1.04567809,110200.0,110190.0,1.07755566]
[1748355091339,1.04579809,110200.0,110190.0,1.07755566]
[1748355091531,0.51399629,110200.0,110190.0,1.07755566]
[1748355091764,0.54399629,110200.0,110190.0,1.07755566]
[1748355091935,0.72539809,110200.0,110190.0,1.07755566]
[1748355092134,1.05619809,110200.0,110190.0,0.61356692]
[1748355092330,1.23659809,110200.0,110190.0,0.61356692]
[1748355092536,0.87579809,110200.0,110190.0,0.62081037]
[1748355092731,0.76579809,110200.0,110190.0,0.56962011]
[1748355092926,1.41659809,110200.0,110190.0,0.56962011]
[1748355093128,1.41659809,110200.0,110190.0,0.56964576]
[1748355093534,1.41659809,110200.0,110190.0,0.56240231]
[1748355093735,1.41659809,110200.0,110190.0,0.45396231]
[1748355094930,1.4210204,110200.0,110190.0,0.45396231]
[1748355095332,1.4210204,110200.0,110190.0,0.37369997]
[1748355096136,1.4210204,110200.0,110190.0,0.44969997]
[1748355097144,1.43027703,110200.0,110190.0,0.44969997]
[1748355098545,1.43027703,110200.0,110190.0,0.4047183]
[1748355100346,1.43027703,110200.0,110190.0,0.44999221]
[1748355102544,1.43027703,110200.0,110190.0,0.04927391]
[1748355102847,1.49937703,110200.0,110190.0,0.004]
[1748355103643,1.06173703,110200.0,110190.0,0.1854182]
[1748355103842,1.10884984,110200.0,110190.0,0.26206213]
[1748355104050,1.10884984,110200.0,110190.0,0.40746213]
[1748355104051,1.10872984,110200.0,110190.0,0.40746213]
[1748355104241,1.47730984,110200.0,110190.0,0.40746213]
[1748355104441,1.47718984,110200.0,110190.0,0.40746213]
[1748355104642,1.42974581,110200.0,110190.0,0.40746213]
[1748355104842,1.4208204,110200.0,110190.0,0.40746213]
[1748355105041,1.4208204,110200.0,110190.0,0.41472292]
[1748355105252,0.6225804,110200.0,110190.0,0.42208526]
[1748355105454,0.7895804,110200.0,110190.0,0.46736629]
[1748355105841,0.7897004,110200.0,110190.0,0.46192236]
[1748355106554,0.7897004,110200.0,110190.0,0.45466157]
[1748355106939,0.7897004,110200.0,110190.0,0.4546705]
[1748355107139,0.7897004,110200.0,110190.0,0.8154705]
[1748355107140,0.0046786,110200.0,110190.0,0.8154705]
[1748355107341,0.0046786,110200.0,110190.0,1.19002426]
[1748355111151,1e-08,110200.0,110190.0,1.89077226]
[1748355111357,1e-08,110200.0,110190.0,2.32821226]
[1748355111558,0.181369,110220.0,110210.0,0.1813853]
[1748355111745,0.291369,110220.0,110210.0,0.85252571]
[1748355111946,0.291369,110220.0,110210.0,1.06712571]
[1748355112446,0.366869,110220.0,110210.0,1.06712571]
[1748355112848,0.367869,110220.0,110210.0,1.06712571]
[1748355113044,0.368869,110220.0,110210.0,1.06712571]
[1748355114057,0.367869,110220.0,110210.0,1.06812571]
[1748355114257,0.1855,110220.0,110210.0,1.06812571]
[1748355114655,0.1855,110220.0,110210.0,0.88674041]
[1748355114960,0.1855,110220.0,110210.0,1.06812571]
[1748355115557,0.1855,110220.0,110210.0,1.07707802]
[1748355116769,0.3668689,110220.0,110210.0,1.08431887]
[1748355117067,0.3668689,110220.0,110210.0,0.8896208]
[1748355117264,0.6600689,110220.0,110210.0,0.5288208]
[1748355117460,0.6600689,110220.0,110210.0,0.57410307]
[1748355117862,0.6600689,110220.0,110210.0,0.57953119]
[1748355118069,0.4000689,110220.0,110210.0,0.57953119]
[1748355118366,0.07,110220.0,110210.0,1.08974699]
[1748355118565,0.07012,110220.0,110210.0,1.08974699]
[1748355118768,0.07012,110220.0,110210.0,1.08431887]
[1748355119259,0.14542,110220.0,110210.0,0.8896208]
[1748355120064,0.14542,110220.0,110210.0,0.89505126]
[1748355120366,0.3267889,110220.0,110210.0,0.89505126]
[1748355120565,0.3267889,110220.0,110210.0,0.78677126]
[1748355120968,0.3267889,110220.0,110210.0,0.89505126]
[1748355121168,0.3960889,110220.0,110210.0,0.90047877]
[1748355121470,0.3960889,110220.0,110210.0,0.89504831]
[1748355123170,0.3960889,110220.0,110210.0,1.08974638]
[1748355123870,0.3960889,110220.0,110210.0,1.13500921]
[1748355124078,0.3960889,110220.0,110210.0,0.77420921]
[1748355124866,0.3960889,110220.0,110210.0,0.5288208]
[1748355125067,0.3960889,110220.0,110210.0,0.53424662]
[1748355125265,0.40051121,110220.0,110210.0,0.53424662]
[1748355127166,0.40051121,110220.0,110210.0,0.52529431]
[1748355127367,0.49051121,110220.0,110210.0,0.52529431]
[1748355127981,0.49051121,110220.0,110210.0,0.33775197]
[1748355128280,1.10204322,110220.0,110210.0,0.01366667]
[1748355128544,1.54674129,110220.0,110210.0,0.01366667]
[1748355128678,1.54674129,110220.0,110210.0,0.00824085]
[1748355129969,1.35204322,110220.0,110210.0,0.1823854]
[1748355130174,1.10204322,110220.0,110210.0,0.001]
[1748355130373,1.15833611,110220.0,110210.0,0.1823854]
[1748355130786,1.60303418,110220.0,110210.0,0.001]
[1748355131177,1.54674129,110220.0,110210.0,0.1823854]
[1748355131453,1.40830056,110220.0,110210.0,0.1823854]
[1748355132379,1.06756855,110220.0,110210.0,0.1823854]
[1748355132582,1.50460855,110220.0,110210.0,0.22769722]
[1748355132777,1.32335965,110220.0,110210.0,0.23505418]
[1748355132984,1.50460895,110220.0,110210.0,0.30365418]
[1748355133281,1.06744895,110220.0,110210.0,0.37405418]
[1748355133584,0.64243965,110220.0,110210.0,0.32874774]
[1748355133892,0.22914231,110220.0,110210.0,0.69678999]
[1748355134076,0.22914231,110220.0,110210.0,0.70222453]
[1748355134077,0.22902231,110220.0,110210.0,0.70222453]
[1748355134273,0.22914231,110220.0,110210.0,0.70222453]
[1748355134480,0.07972231,110220.0,110210.0,0.69678999]
[1748355134787,0.07984231,110220.0,110210.0,0.69678999]
[1748355135485,0.26109161,110220.0,110210.0,0.70765459]
[1748355135689,0.63109161,110220.0,110210.0,0.70765459]
[1748355135884,0.67001161,110220.0,110210.0,0.45497459]
[1748355136081,0.74081161,110220.0,110210.0,0.45497459]
[1748355136382,0.38001161,110220.0,110210.0,0.45497459]
[1748355137685,0.12984231,110220.0,110210.0,0.45497459]
[1748355137885,0.31121161,110220.0,110210.0,0.81577459]
[1748355138088,0.37989161,110220.0,110210.0,0.81577459]
[1748355138287,0.38001161,110220.0,110210.0,0.81577459]
[1748355138472,0.19864231,110220.0,110210.0,0.81577459]
[1748355138673,0.07984231,110220.0,110210.0,0.81577459]
[1748355138882,0.00454231,110220.0,110210.0,1.01047266]
[1748355139085,0.00442231,110220.0,110210.0,1.01047266]
[1748355139387,0.00442231,110220.0,110210.0,1.00960806]
[1748355139388,0.00454231,110220.0,110210.0,1.00960806]
[1748355140377,0.00454231,110220.0,110210.0,1.00236581]
[1748355140986,0.00454231,110220.0,110210.0,0.64156581]
[1748355141286,0.00454231,110220.0,110210.0,1.01686082]
[1748355141991,0.00454231,110220.0,110210.0,1.02135075]
[1748355142194,0.00454231,110220.0,110210.0,1.00685574]
[1748355145686,0.00454231,110220.0,110210.0,1.44381574]
[1748355145886,0.00013629,110230.0,110220.0,0.1813693]
[1748355146191,0.00025629,110230.0,110220.0,0.97709072]
[1748355147195,0.07095629,110230.0,110220.0,0.97709072]
[1748355147590,9e-08,110230.0,110220.0,0.97621964]
[1748355147787,9e-08,110230.0,110220.0,1.31621964]